Cogmind - Beta 16.1 @@@ ROGUE MODE // 2026.03.09 @ 05:04:10 Player: kim.jet.wav Result: Self-destructed Performance ------------- Evolutions (1) 500 Regions Visited (4) 800 Robots Destroyed (34) 170 Value Destroyed (548) 548 Prototype IDs (0) 0 Alien Tech Used (0) 0 Bonus (0) 0 TOTAL SCORE: 2018 Bonus ------- None Cogmind --------- Core Integrity 336/400 Matter 300/300 Energy 125/125 System Corruption 0% Temperature Cool (36) Movement Walking (120) Location -9/Mines Parts ------- > --- POWER (1) -------- Light Ion Engine > --- PROPULSION (2) --- Aluminum Leg Aluminum Leg > --- UTILITY (3) ------ Medium Storage Unit Structural Scanner Improved Utility Shielding > --- WEAPON (3) ------- Particle Gun > --- INVENTORY (10) --- Light Treads Visual Processing Unit Sensor Array Shield Generator EM Pulse Gun Medium Laser Small Laser Particle Cannon Light Assault Rifle Peak State ------------ > --- POWER ------------ Light Ion Engine > --- PROPULSION ------- Aluminum Leg Aluminum Leg > --- UTILITY ---------- Medium Storage Unit Structural Scanner Improved Utility Shielding > --- WEAPON ----------- EM Pulse Gun EM Pulse Gun Particle Gun > --- INVENTORY -------- Light Ion Engine Light Treads Shield Generator Medium Laser Medium Laser Small Laser Particle Cannon Light Assault Rifle [Rating: 13] Favorites ----------- Power Ion Engine Engine Ion Engine Propulsion Light Treads Treads Light Treads Leg Aluminum Leg Utility Medium Storage Unit Device Structural Scanner Storage Medium Storage Unit Protection Improved Utility Shielding Weapon Medium Laser Energy Gun Medium Laser Launcher Grenade Launcher Build | -11 -10 -10 -9 -9 ------- Run | Yrd Mat Min Mat Min Slots Evolved 2 | . . . 2 . Power . | . . . . . Propulsion . | . . . . . Utility 1 | . . . 1 . Weapon 1 | . . . 1 . Parts Attached 22 | 7 2 . 12 1 Power 4 | 1 . . 2 1 Engine 4 | 1 . . 2 1 Core . | . . . . . Reactor . | . . . . . Propulsion 4 | 2 . . 2 . Treads 2 | 2 . . . . Leg 2 | . . . 2 . Wheel . | . . . . . Hover . | . . . . . Flight . | . . . . . Utility 5 | 2 . . 3 . Device 2 | 1 . . 1 . Storage 2 | 1 . . 1 . Processor . | . . . . . Hackware . | . . . . . Protection 1 | . . . 1 . Artifact . | . . . . . Weapon 9 | 2 2 . 5 . Energy Gun 8 | 2 1 . 5 . Energy Cannon . | . . . . . Ballistic Gun . | . . . . . Ballistic Cannon . | . . . . . Launcher 1 | . 1 . . . Special Weapon . | . . . . . Impact Weapon . | . . . . . Slashing Weapon . | . . . . . Piercing Weapon . | . . . . . Special Melee Weapon . | . . . . . Unidentified Prototypes . | . . . . . Parts Lost 6 | . . . 3 3 Power 1 | . . . . 1 Propulsion 1 | . . . 1 . Utility 1 | . . . 1 . Weapon 3 | . . . 1 2 Highest Loss Streak 2 | . . . 2 2 To Critical Strikes . | . . . . . Average Backups 4 | 1 2 4 4 9 Power . | . . . . . Propulsion 1 | 1 2 2 1 1 Utility . | . . . . 3 Weapon 2 | . . 2 2 5 Tool/Special . | . . . . . Unused Backups 4 | . . . . 4 Power . | . . . . . Propulsion . | . . . . . Utility 2 | . . . . 2 Weapon 2 | . . . . 2 Tool/Special . | . . . . . Average Slot Usage (%) 93 | . 100 100 88 95 Engine 11 | . 14 14 11 11 Treads 11 | . 28 28 7 . Leg 11 | . . . 14 22 Device 10 | . 14 14 8 11 Storage 11 | . 14 14 11 11 Protection 4 | . . . 4 11 Energy Gun 27 | . 27 28 27 28 Launcher 2 | . . . 3 . Peak Build Rating 13 | 7 7 7 13 13 Average Rating 9 | 5 7 7 9 12 On Entrance 6 | . 7 7 7 13 Avg Prop Armor Cover (%) 20 | 20 . . . . Naked Turns . | . . . . . Heaviest Build 23 | 14 16 15 23 23 Greatest Support 40 | 40 40 40 40 20 Greatest Overweight (x) 2 | 2 . . 1 1 Average Overweight (x) . | . . . . 1 Largest Inventory Capacity 10 | 8 8 8 10 10 Average Capacity 9 | 7 8 8 9 10 Most Carried 10 | 2 4 4 10 10 Average Carried 4 | 1 3 4 4 9 Final Capacity 10 | 8 8 8 10 10 Final Carried 10 | 2 4 4 10 9 Class Distribution -------------------- 44% | Mutant 32% | Tank 23% | Gunner Dominant Class ---------------- Mutant | -10/Materials Mutant | -10/Mines Gunner | -9/Materials Tank | -9/Mines Resources | -11 -10 -10 -9 -9 ----------- Run | Yrd Mat Min Mat Min Matter Collected 565 | 270 18 . 274 3 Remotely . | . . . . . Salvage Created 744 | 96 90 . 490 68 Parts 67 | 8 13 . 39 7 Haulers Intercepted . | . . . . . Recyclers Shooed 3 | 1 . . 2 . Parts Field Recycled . | . . . . . Retrieved Matter . | . . . . . Parts Self-Destructed . | . . . . . Prevented . | . . . . . Parts Restored . | . . . . . Kills | -11 -10 -10 -9 -9 ------- Run | Yrd Mat Min Mat Min Combat Hostiles Destroyed 23 | . 5 . 13 5 Guns 16 | . 2 . 10 4 AOE 7 | . 3 . 3 1 Classes Destroyed 8 | 2 3 . 3 . Builder 3 | . 2 . 1 . Tunneler 2 | 2 . . . . Recycler 3 | 1 . . 2 . Operator 1 | . . . 1 . Watcher 2 | . . . 2 . Swarmer 16 | . 3 . 8 5 Grunt 5 | . 2 . 3 . Sentry 2 | . . . 2 . Best Kill Streak 9 | 3 7 . 9 4 Combat Bots Only 7 | . 5 . 7 4 Max Kills in Single Turn 3 | 1 2 . 3 2 Gunslinging . | . . . . . Exploded 2 | . 1 . 2 1 Melee . | . . . . . Uniques/NPCs Destroyed . | . . . . . Combat | -11 -10 -10 -9 -9 -------- Run | Yrd Mat Min Mat Min Hostile Shots Fired 107 | . 28 . 50 29 Missed 22 | . 6 . 12 4 Hits 85 | . 22 . 38 25 Projectile 85 | . 22 . 38 25 Critical Strikes 1 | . 1 . . . Damage Taken 912 | . 210 . 452 250 Core 81 | . 17 . 54 10 Absorbed by Shields . | . . . . . Redirected to Shielding 9 | . . . . 9 Core Remaining (%) 96 | 100 . 93 . . Volleys Fired 48 | 5 13 . 20 10 Largest 3 | 2 2 . 3 3 Hottest 165 | 90 100 . 165 145 Shots Fired 111 | 10 23 . 58 20 Gun 100 | 10 20 . 50 20 Cannon . | . . . . . Launcher 11 | . 3 . 8 . Special . | . . . . . Kinetic . | . . . . . Thermal 81 | 10 20 . 41 10 Explosive 11 | . 3 . 8 . Electromagnetic 19 | . . . 9 10 Robot Hit Streak 14 | 4 5 . 14 5 Robot Miss Streak 4 | 1 2 . 4 2 Penetration Max . | . . . . . Secondary Targets 2 | . . . 1 1 Max Gunslinging Chain 1 | . . . 1 1 Shots Hit Robots 66 | 5 12 . 36 13 Core Hits 47 | 4 10 . 28 5 Critical Kills . | . . . . . Critical Parts Destroyed . | . . . . . Critical Strikes 4 | . 1 . 3 . Burn 4 | . 1 . 3 . Melee Attacks . | . . . . . Impact . | . . . . . Slashing . | . . . . . Piercing . | . . . . . Sneak Attacks . | . . . . . Combat Hostiles . | . . . . . Follow-up Attacks . | . . . . . Damage Inflicted 1521 | 60 342 . 872 247 Guns 832 | 60 138 . 465 169 Cannons . | . . . . . Explosions 679 | . 204 . 407 68 Melee . | . . . . . Ramming 10 | . . . . 10 Kinetic . | . . . . . Thermal 766 | 60 138 . 382 186 Explosive 611 | . 204 . 407 . Electromagnetic 134 | . . . 83 51 Impact . | . . . . . Slashing . | . . . . . Piercing . | . . . . . Highest Corruption . | . . . . . Average Corruption . | . . . . . Corruption Purged . | . . . . . Corruption Blocked . | . . . . . Overload Shots . | . . . . . Overflow Damage 12 | . . . . 12 Projectiles . | . . . . . Explosions 12 | . . . . 12 Melee . | . . . . . Knockbacks . | . . . . . Impact . | . . . . . Kinetic . | . . . . . Secondary . | . . . . . Self-Inflicted Damage 69 | . . . 32 37 Shots 3 | . . . 2 1 Rammed . | . . . . . Targets Rammed 1 | . . . . 1 Kicked 1 | . . . . 1 Crushed . | . . . . . Highest Temperature 322 | 150 306 . 288 322 Average Temperature 124 | 78 159 . 106 152 Received Heat Transfer 180 | . 84 . 96 . Effects 4 | . . . . 4 Interference 3 | . . . . 3 Damage (minor) 1 | . . . . 1 Siege Activations . | . . . . . Martial Activations . | . . . . . Shielding Activations . | . . . . . Robots Disrupted . | . . . . . Combat Hostiles . | . . . . . Robots Corrupted . | . . . . . Combat Hostiles . | . . . . . Parts Fried 1 | . . . 1 . Impact Corruptions . | . . . . . Robots Melted . | . . . . . Combat Hostiles . | . . . . . Parts Melted 4 | . 1 . 3 . Heat Transferred 2432 | 173 481 . 1332 446 Parts Sabotaged . | . . . . . Parts Stolen . | . . . . . Parts Stripped . | . . . . . Power Chain Reactions 1 | . . . . 1 Alert | -11 -10 -10 -9 -9 ------- Run | Yrd Mat Min Mat Min Maximum Alert Level 1 | . . . 1 . Low Security (%) 70 | 100 100 100 37 100 Level 1 29 | . . . 62 . Level 2 . | . . . . . Level 3 . | . . . . . Level 4 . | . . . . . Level 5 . | . . . . . High Security . | . . . . . Max Security . | . . . . . Peak Influence 277 | 10 126 40 277 127 Initial 104 | . . 40 11 104 Average 103 | 1 30 37 168 93 Influence Increases 735 | 15 146 . 461 113 Destroy 0b10 Robot/C 460 | . 100 . 260 100 Destroy 0b10 Robot/NC 55 | 15 10 . 30 . Destroy Leader 94 | . 20 . 64 10 Disable Machine 30 | . . . 30 . Destroy Structure 66 | . 16 . 47 3 Lose Combat Pursuer 30 | . . . 30 . Influence Decreases 628 | 15 40 76 222 275 Entered New Map 250 | . . 66 19 165 Time Decay 318 | 15 40 10 173 80 Lost Part 60 | . . . 30 30 Squads Dispatched 5 | . 2 . 3 . Investigation 2 | . . . 2 . Extermination . | . . . . . Reinforcement 3 | . 2 . 1 . Assault . | . . . . . Garrison . | . . . . . Intercept . | . . . . . Searches Triggered . | . . . . . Construction Impeded . | . . . . . Haulers Reinforced . | . . . . . Active Scanning Responses . | . . . . . Cargo Convoy Interrupts . | . . . . . Stealth | -11 -10 -10 -9 -9 --------- Run | Yrd Mat Min Mat Min Distress Signals 3 | . 1 . 2 . Communications Jammed . | . . . . . Distress Signals . | . . . . . Times Spotted 33 | . 8 . 18 7 Peak Tracking Total 6 | . 4 . 6 4 Tactical Retreats 1 | . . . 1 . Traps | -11 -10 -10 -9 -9 ------- Run | Yrd Mat Min Mat Min Traps Triggered 2 | . . . 2 . Indirectly . | . . . . . Trap Hack Attempts . | . . . . . Triggered . | . . . . . Disarmed . | . . . . . Reprogrammed . | . . . . . Reused . | . . . . . Traps Extracted . | . . . . . Installed . | . . . . . Triggered . | . . . . . Machines | -11 -10 -10 -9 -9 ---------- Run | Yrd Mat Min Mat Min Machines Disabled 3 | . 1 . 2 . Max in Single Turn 1 | . 1 . 1 . Machines Repaired . | . . . . . Machines Dismantled . | . . . . . Machines Sabotaged . | . . . . . Overloaded Fab Kills . | . . . . . Hacking | -11 -10 -10 -9 -9 --------- Run | Yrd Mat Min Mat Min Machines Accessed 1 | . . . 1 . Terminals . | . . . . . Fabricators . | . . . . . Repair Stations . | . . . . . Recycling Units . | . . . . . Scanalyzers 1 | . . . 1 . Garrison Access . | . . . . . Total Hacks 2 | . . . 2 . Successful 1 | . . . 1 . Failed 1 | . . . 1 . Catastrophic . | . . . . . Database Lockouts . | . . . . . Manual . | . . . . . Terminals . | . . . . . Fabricators . | . . . . . Repair Stations . | . . . . . Recycling Units . | . . . . . Scanalyzers 2 | . . . 2 . Garrison Access . | . . . . . Terminal Hacks . | . . . . . Fabricator Hacks . | . . . . . Repair Station Hacks . | . . . . . Recycling Unit Hacks . | . . . . . Scanalyzer 1 | . . . 1 . Retrieve Study 1 | . . . 1 . Garrison Access Hacks . | . . . . . Unauthorized Hacks . | . . . . . Terminals . | . . . . . Fabricators . | . . . . . Repair Stations . | . . . . . Recycling Units . | . . . . . Scanalyzers . | . . . . . Garrison Access . | . . . . . Data Cores Recovered 1 | . . . 1 . Used . | . . . . . Hacking Detections 1 | . . . 1 . Full Trace Events . | . . . . . Feedback Events . | . . . . . Feedback Blocked . | . . . . . Robot Schematics Acquired . | . . . . . Robots Built . | . . . . . Authchips . | . . . . . Time . | . . . . . Total Robot Build Rating . | . . . . . Part Schematics Acquired . | . . . . . Parts Built . | . . . . . Authchips . | . . . . . Time . | . . . . . Total Part Build Rating . | . . . . . Part Studies Acquired 1 | . . . 1 . Parts Repaired . | . . . . . Time . | . . . . . Parts Recycled . | . . . . . Recycled Matter . | . . . . . Retrieved Matter . | . . . . . Retrieved Components . | . . . . . Parts Scanalyzed . | . . . . . Part Schematics Acquired . | . . . . . Parts Damaged . | . . . . . Bothacking | -11 -10 -10 -9 -9 ------------ Run | Yrd Mat Min Mat Min Used RIF Installer . | . . . . . Robots Hacked . | . . . . . Non-combat . | . . . . . Combat . | . . . . . Robot Hacks Applied . | . . . . . Relay Couplers Released . | . . . . . Fabnet Peak Effective % . | . . . . . Robots Rewired . | . . . . . Allies Hacked . | . . . . . Hacks Repelled . | . . . . . Allies | -11 -10 -10 -9 -9 -------- Run | Yrd Mat Min Mat Min Total Allies . | . . . . . Largest Group . | . . . . . Highest-Rated Group . | . . . . . Highest-Rated Ally . | . . . . . Total Orders . | . . . . . Ally Attacks . | . . . . . Total Damage . | . . . . . Kills . | . . . . . Allies Corrupted . | . . . . . Allies Melted . | . . . . . Intel | -11 -10 -10 -9 -9 ------- Run | Yrd Mat Min Mat Min Active Infowar (turns) 773 | 16 200 26 360 171 Structural 386 | . . . 215 171 Seismic 387 | 16 200 26 145 . Robot Analysis Total . | . . . . . Derelict Logs Recovered . | . . . . . Drone Launches . | . . . . . Drone Recoveries . | . . . . . Exploration | -11 -10 -10 -9 -9 ------------- Run | Yrd Mat Min Mat Min Turns Passed 976 | 113 200 26 466 171 Spaces Moved 450 | 54 97 17 209 73 Core 15 | 15 . . . . Treads 218 | 39 97 17 65 . Legs 217 | . . . 144 73 Wheels . | . . . . . Hover . | . . . . . Flight . | . . . . . Fastest Speed 50 | 50 160 160 120 190 Average Speed 164 | 142 160 160 162 190 Slowest Speed 190 | 160 160 160 190 190 Overloaded Moves . | . . . . . Propulsion Burnouts . | . . . . . Robots Hopped . | . . . . . Potential Cave-ins . | . . . . . Cave-ins Triggered . | . . . . . Exploration Rate (%) 15 | 4 24 12 16 22 Regions Visited 4 Branch Regions 2 Pre-discovered Areas . | . . . . . Known Exits Taken . | . . . . . Unknown Exits Taken 4 | 1 1 1 1 . Scrap Searched 1 | . . . . 1 Spaces Dug . | . . . . . Terrain Destroyed 67 | . 13 . 51 3 Melee . | . . . . . Projectile . | . . . . . AOE 67 | . 13 . 51 3 Terrain Rammed . | . . . . . Walls Destroyed . | . . . . . Machines Disabled . | . . . . . Actions | -11 -10 -10 -9 -9 --------- Run | Yrd Mat Min Mat Min Total 588 | 77 118 16 292 85 Wait 40 | 9 4 . 27 . Move 446 | 53 96 16 208 73 Hop . | . . . . . Pick Up 10 | 3 1 . 6 . Fast Attach 15 | 6 1 . 8 . Attach 8 | 1 . . 6 1 Detach 10 | . 1 . 9 . Swap 5 | . 2 . 3 . Drop 5 | . . . 5 . Fire 48 | 5 13 . 20 10 Melee . | . . . . . Ram . | . . . . . Kick 1 | . . . . 1 Crush . | . . . . . Escape Stasis . | . . . . . Rewire . | . . . . . Trap . | . . . . . Miscellaneous . | . . . . . Route ------- -11/Scrapyard -10/Materials (discovered 2 exits: [*Min x2]) -10/Mines -9/Materials -9/Mines History --------- Turn | Location | Event 12 | -11/Scrapyard | Discovered new exit (range 16) 114 | -11/Scrapyard | Entered Materials 282 | -10/Materials | Discovered new exit (range 11) 300 | -10/Materials | Build established: Mutant 304 | -10/Materials | Discovered new exit (range 16) 314 | -10/Materials | Entered Mines 322 | -10/Mines | Discovered new exit (range 13) 340 | -10/Mines | Entered Materials 340 | -9/Materials | Evolved 2 slots: Utility x1, Weapon x1 516 | -9/Materials | Destroyed 7 combat bots 691 | -9/Materials | Discovered new exit (range 13) 806 | -9/Materials | Entered Mines 808 | -9/Mines | Met a Derelict bent on vengeance 892 | -9/Mines | Build established: Tank 977 | -9/Mines | Self-destructed Last Messages --------------- 00931_ R-06 Scavenger collects Flight Unit. 00932_ Overheating: System interference. 00932_ EM Pulse Gun temporarily disabled. 00934_ U-05 Engineer lays Concrete. 00934_ U-05 Engineer builds a Wall. 00935_ U-05 Engineer lays Concrete. 00937_ R-06 Scavenger collects Lgt. Assault Rifle. 00938_ U-05 Engineer lays Concrete. 00941_ K-01 Serf collects debris. 00941_ U-05 Engineer lays Concrete. 00944_ Kicked K-01 Serf out of the way. 00946_ Searching scrap... 00946_ Found Med. Armor Plating. 00946_ Found 62 Matter. 00946_ Found Hrd. Light Armor Plating. 00946_ Found Imp. Ion Engine. 00946_ Found 52 Matter. 00947_ Acquired 3 matter. 00974_ EM Pulse Gun destroyed. 00975_ S-10 Pest destroyed. Map ----- +----------------------------------------------------+ | | | | | | | | | | | | | | | ?????????????????????????????????????????????????? | | ?????????????????????????????????????????????????? | | ?????????????????????????????????????????????????? | | ?????????????????????????????????????????????????? | | ?????????????????????????????????????????????????? | | ?????????????????????????????????????????????????? | | ?????????????????????????????????????????????????? | | ?????????????????????????????????????????????????? | | ?????????????????????????????????????????????????? | | ?????????????????????????????????????????????????? | | ?????????????????????????????????????????????????? | | ?????????????????????????????????????????????????? | | ?????????????????????????????????????????????????? | | ?????????????????????????????????????????????????? | | ?????????????????????????????????????????????????? | | ?????????????????? ####???????????????????????? | | ??????????????????###########????????????????????? | | ??????????????????## s ####????????????????????? | | ???????????????##### [%=@ ##????????????????????? | | ???????????????## """s# ##????????????????????? | | ???????????????## """ # ##????????????????????? | | ???????????????## ## """ # ##????????????????????? | | ????????????????? ######## ##????????????????????? | | ??????????????????######## ##????????????????????? | | ????????????????????????## ##??????????########### | | ????????????????????????##!##?????????############ | | ????????????????????????##!##?????????### ## | | ????????????????????????##%##????????### # | | ????????????????????????##*##???????#### | | ????????????????????????##%##???????### """ | | ??????????????????######## ##??????### """ | | ??????????????????######## ##??????## """ | | ??????????????????## ^ ######??## | | ??????????????????## # #######?###### #### | | ??????????????????## # # ## ###?############## | | ??????????????????##^#^ ^ ##?????###### | | ??????????????????## # ## #####??????## | | ??????????????????## #####??????## # | | ?????????????????? ###### ##??????## ## | | ?????????????????? ######% ## ##??????## ### | | ???????????????????## % ## ##??????## ### | | ???????????????????## ##% ## ########## ##? | | ???????????????????## ## ### ########## ##? | +----------------------------------------------------+ Best States ------------- Heat Dissipation 28 Energy Generation 10 Energy Capacity 250 Matter Stores 300 Matter Capacity 300 Sight Range 16 Terrain Scan Density 10 Utility Shielding 66 Evasion (%) 55 Recoil Reduction 2 Item Schematics ----------------- None Robot Schematics ------------------ None Fabricated ------------ Nothing Repaired ---------- Nothing Studied --------- Med. Laser | -9/Materials | Hacked Alien Tech Used ----------------- None Achievements -------------- Physics Hates This One Trick Challenges ------------ None Game ------ Seed DamperCoreFirepult Manual? 0 Play Time 00:12:21 Cumulative 59.5 hours Start 2026.03.09 @ 04:50:44 End 2026.03.09 @ 05:04:10 Sessions 1 Manual Loads 0 Difficulty Rogue Special Mode None Game No. 229 Rogue 229 Adventurer 0 Explorer 0 Win Type - Total 0 Types 0/0/0/0/0/0/0/0/0/0 Lore% 28 Gallery% 21 Achievement% 17 Wizard Run 0 Options --------- Layout 0 ASCII 1 Keyboard 1 Movement Numpad Keybinds 1 Fullscreen 1 Font 18/X11 Map View 76x50 Zoom Use 0% Tactical HUD 1 Map Filters NONE Filters NONE Steam 1 RUN: d52b6382-2252-4113-bd8f-8b9baecd1065